Workbook

Sheet Notes
B2: Post-COVID clinic Friends and Family Test (FFT) data - December 2024 | H2: Show data for:

Sheet Summary
B3: FFT | C3: Number of organisations submitting | D3: Total responses to date | E3: Responses | G3: Percentage Positive | I3: Percentage Negative
C4: 2024-12-01 | D4: 2024-12-01 | E4: 2024-12-01 | F4: 2024-11-26 | G4: 2024-12-01 | H4: 2024-11-26 | I4: 2024-12-01 | J4: 2024-11-26
B5: Post Covid Q1 | C5: 66 | D5: 31777 | E5: 173 | F5: 290 | G5: 0.9306358382 | H5: 0.9724137931 | I5: 0.04624277457 | J5: 0.02068965517
B6: Post Covid Q2 | C6: 66 | D6: 16444 | E6: 150 | F6: 232 | G6: 0.98 | H6: 0.9784482759 | I6: 0.02 | J6: 0.02155172414
B7: Post Covid Q3 | C7: 66 | D7: 17165 | E7: 149 | F7: 232 | G7: 0.9932885906 | H7: 1 | I7: 0.006711409396 | J7: 0

Sheet ICB
A3: ICB Code | B3: ICB Name | C3: Question 1 | F3: Question 1 | L3: Question 2 | P3: Question 2 | S3: Question 3 | V3: Question 3
C4: Total Responses | D4: Percentage Positive | E4: Percentage Negative | F4: Breakdown of Responses | L4: Total Responses | M4: Total Eligible | N4: Percentage Positive | O4: Percentage Negative | P4: Breakdown of Responses | S4: Total Responses | T4: Percentage Positive | U4: Percentage Negative | V4: Breakdown of Responses
F5: Very Good | G5: Good | H5: Neither Good nor Poor | I5: Poor | J5: Very Poor | K5: Don't Know | P5: Yes definitely | Q5: Yes to some extent | R5: No | V5: Yes definitely | W5: Yes to some extent | X5: No
B6: England | C6: 173 | D6: 0.9306358382 | E6: 0.04624277457 | F6: 138 | G6: 23 | H6: 3 | I6: 5 | J6: 3 | K6: 1 | L6: 150 | M6: 1658 | N6: 0.98 | O6: 0.02 | P6: 129 | Q6: 18 | R6: 3 | S6: 149 | T6: 0.9932885906 | U6: 0.006711409396 | V6: 145 | W6: 3 | X6: 1
B7: Selection (excluding suppressed data) | C7: =SUBTOTAL(9,C8:C61) -> 173 | D7: =IFERROR((F7+G7)/SUM(F7:K7), "-") -> 0.9189189189 | E7: =IFERROR((I7+J7)/SUM(F7:K7), "-") -> 0.05405405405 | F7: =SUBTOTAL(9,F8:F61) -> 117 | G7: 19 | H7: 3 | I7: 5 | J7: 3 | K7: 1 | L7: 150 | M7: 1658 | N7: =IFERROR((P7+Q7)/SUM(P7:R7), "-") -> 0.9761904762 | O7: =IFERROR(R7/SUM(P7:R7), "-") -> 0.02380952381 | P7: 107 | Q7: 16 | R7: 3 | S7: =SUBTOTAL(9,S8:S61) -> 149 | T7: =IFERROR((V7+W7)/SUM(V7:X7), "-") -> 0.992 | U7: =IFERROR(X7/SUM(V7:X7), "-") -> 0.008 | V7: =SUBTOTAL(9,V8:V61) -> 122 | W7: 2 | X7: 1
A8: QE1 | B8: LANCASHIRE AND SOUTH CUMBRIA ICB | C8: 0 | D8: NA | E8: NA | F8: 0 | G8: 0 | H8: 0 | I8: 0 | J8: 0 | K8: 0 | L8: 0 | M8: 0 | N8: NA | O8: NA | P8: 0 | Q8: 0 | R8: 0 | S8: 0 | T8: NA | U8: NA | V8: 0 | W8: 0 | X8: 0
A9: QF7 | B9: SOUTH YORKSHIRE ICB | C9: 5 | D9: 1 | E9: 0 | F9: * | G9: * | H9: * | I9: * | J9: * | K9: * | L9: 4 | M9: 286 | N9: * | O9: * | P9: * | Q9: * | R9: * | S9: 4 | T9: * | U9: * | V9: * | W9: * | X9: *
A10: QGH | B10: HEREFORDSHIRE AND WORCESTERSHIRE ICB | C10: 0 | D10: NA | E10: NA | F10: 0 | G10: 0 | H10: 0 | I10: 0 | J10: 0 | K10: 0 | L10: 0 | M10: 0 | N10: NA | O10: NA | P10: 0 | Q10: 0 | R10: 0 | S10: 0 | T10: NA | U10: NA | V10: 0 | W10: 0 | X10: 0
A11: QH8 | B11: MID AND SOUTH ESSEX ICB | C11: 0 | D11: NA | E11: NA | F11: 0 | G11: 0 | H11: 0 | I11: 0 | J11: 0 | K11: 0 | L11: 0 | M11: 0 | N11: NA | O11: NA | P11: 0 | Q11: 0 | R11: 0 | S11: 0 | T11: NA | U11: NA | V11: 0 | W11: 0 | X11: 0
A12: QHG | B12: BEDFORDSHIRE, LUTON AND MILTON KEYNES ICB | C12: 9 | D12: 1 | E12: 0 | F12: 8 | G12: 1 | H12: 0 | I12: 0 | J12: 0 | K12: 0 | L12: 9 | M12: 47 | N12: 1 | O12: 0 | P12: 9 | Q12: 0 | R12: 0 | S12: 9 | T12: 1 | U12: 0 | V12: 9 | W12: 0 | X12: 0
A13: QHL | B13: BIRMINGHAM AND SOLIHULL ICB | C13: 2 | D13: * | E13: * | F13: * | G13: * | H13: * | I13: * | J13: * | K13: * | L13: 2 | M13: 0 | N13: * | O13: * | P13: * | Q13: * | R13: * | S13: 2 | T13: * | U13: * | V13: * | W13: * | X13: *
A14: QHM | B14: NORTH EAST AND NORTH CUMBRIA ICB | C14: 5 | D14: 1 | E14: 0 | F14: 3 | G14: 2 | H14: 0 | I14: 0 | J14: 0 | K14: 0 | L14: 3 | M14: 27 | N14: * | O14: * | P14: 2 | Q14: 1 | R14: 0 | S14: 3 | T14: * | U14: * | V14: 3 | W14: 0 | X14: 0
A15: QJ2 | B15: DERBY AND DERBYSHIRE ICB | C15: 0 | D15: NA | E15: NA | F15: 0 | G15: 0 | H15: 0 | I15: 0 | J15: 0 | K15: 0 | L15: 0 | M15: 0 | N15: NA | O15: NA | P15: 0 | Q15: 0 | R15: 0 | S15: 0 | T15: NA | U15: NA | V15: 0 | W15: 0 | X15: 0
A16: QJG | B16: SUFFOLK AND NORTH EAST ESSEX ICB | C16: 0 | D16: NA | E16: NA | F16: 0 | G16: 0 | H16: 0 | I16: 0 | J16: 0 | K16: 0 | L16: 0 | M16: 0 | N16: NA | O16: NA | P16: 0 | Q16: 0 | R16: 0 | S16: 0 | T16: NA | U16: NA | V16: 0 | W16: 0 | X16: 0
A17: QJK | B17: DEVON ICB | C17: 1 | D17: * | E17: * | F17: * | G17: * | H17: * | I17: * | J17: * | K17: * | L17: 1 | M17: 1 | N17: * | O17: * | P17: * | Q17: * | R17: * | S17: 1 | T17: * | U17: * | V17: * | W17: * | X17: *
A18: QJM | B18: LINCOLNSHIRE ICB | C18: 4 | D18: * | E18: * | F18: * | G18: * | H18: * | I18: * | J18: * | K18: * | L18: 4 | M18: 132 | N18: * | O18: * | P18: * | Q18: * | R18: * | S18: 4 | T18: * | U18: * | V18: * | W18: * | X18: *
A19: QK1 | B19: LEICESTER, LEICESTERSHIRE AND RUTLAND ICB | C19: 1 | D19: * | E19: * | F19: * | G19: * | H19: * | I19: * | J19: * | K19: * | L19: 1 | M19: 44 | N19: * | O19: * | P19: * | Q19: * | R19: * | S19: 1 | T19: * | U19: * | V19: * | W19: * | X19: *
A20: QKK | B20: SOUTH EAST LONDON ICB | C20: 0 | D20: NA | E20: NA | F20: 0 | G20: 0 | H20: 0 | I20: 0 | J20: 0 | K20: 0 | L20: 0 | M20: 14 | N20: NA | O20: NA | P20: 0 | Q20: 0 | R20: 0 | S20: 0 | T20: NA | U20: NA | V20: 0 | W20: 0 | X20: 0
A21: QKS | B21: KENT AND MEDWAY ICB | C21: 5 | D21: 1 | E21: 0 | F21: 2 | G21: 3 | H21: 0 | I21: 0 | J21: 0 | K21: 0 | L21: 5 | M21: 14 | N21: 1 | O21: 0 | P21: 3 | Q21: 2 | R21: 0 | S21: 5 | T21: 1 | U21: 0 | V21: 5 | W21: 0 | X21: 0
A22: QM7 | B22: HERTFORDSHIRE AND WEST ESSEX ICB | C22: 0 | D22: NA | E22: NA | F22: 0 | G22: 0 | H22: 0 | I22: 0 | J22: 0 | K22: 0 | L22: 0 | M22: 0 | N22: NA | O22: NA | P22: 0 | Q22: 0 | R22: 0 | S22: 0 | T22: NA | U22: NA | V22: 0 | W22: 0 | X22: 0
A23: QMF | B23: NORTH EAST LONDON ICB | C23: 8 | D23: 0.875 | E23: 0 | F23: 6 | G23: 1 | H23: 0 | I23: 0 | J23: 0 | K23: 1 | L23: 7 | M23: 82 | N23: 0.8571428571 | O23: 0.1428571429 | P23: 5 | Q23: 1 | R23: 1 | S23: 7 | T23: 1 | U23: 0 | V23: 7 | W23: 0 | X23: 0
A24: QMJ | B24: NORTH CENTRAL LONDON ICB | C24: 0 | D24: NA | E24: NA | F24: 0 | G24: 0 | H24: 0 | I24: 0 | J24: 0 | K24: 0 | L24: 0 | M24: 0 | N24: NA | O24: NA | P24: 0 | Q24: 0 | R24: 0 | S24: 0 | T24: NA | U24: NA | V24: 0 | W24: 0 | X24: 0
A25: QMM | B25: NORFOLK AND WAVENEY ICB | C25: 0 | D25: NA | E25: NA | F25: 0 | G25: 0 | H25: 0 | I25: 0 | J25: 0 | K25: 0 | L25: 0 | M25: 0 | N25: NA | O25: NA | P25: 0 | Q25: 0 | R25: 0 | S25: 0 | T25: NA | U25: NA | V25: 0 | W25: 0 | X25: 0
A26: QNC | B26: STAFFORDSHIRE AND STOKE-ON-TRENT ICB | C26: 13 | D26: 0.7692307692 | E26: 0.2307692308 | F26: 8 | G26: 2 | H26: 0 | I26: 3 | J26: 0 | K26: 0 | L26: 13 | M26: 0 | N26: 1 | O26: 0 | P26: 12 | Q26: 1 | R26: 0 | S26: 13 | T26: 1 | U26: 0 | V26: 13 | W26: 0 | X26: 0
A27: QNQ | B27: FRIMLEY ICB | C27: 0 | D27: NA | E27: NA | F27: 0 | G27: 0 | H27: 0 | I27: 0 | J27: 0 | K27: 0 | L27: 0 | M27: 0 | N27: NA | O27: NA | P27: 0 | Q27: 0 | R27: 0 | S27: 0 | T27: NA | U27: NA | V27: 0 | W27: 0 | X27: 0
A28: QNX | B28: SUSSEX ICB | C28: 2 | D28: * | E28: * | F28: * | G28: * | H28: * | I28: * | J28: * | K28: * | L28: 2 | M28: 2 | N28: * | O28: * | P28: * | Q28: * | R28: * | S28: 2 | T28: * | U28: * | V28: * | W28: * | X28: *
A29: QOC | B29: SHROPSHIRE, TELFORD AND WREKIN ICB | C29: 1 | D29: * | E29: * | F29: * | G29: * | H29: * | I29: * | J29: * | K29: * | L29: 1 | M29: 1 | N29: * | O29: * | P29: * | Q29: * | R29: * | S29: 1 | T29: * | U29: * | V29: * | W29: * | X29: *
A30: QOP | B30: GREATER MANCHESTER ICB | C30: 0 | D30: NA | E30: NA | F30: 0 | G30: 0 | H30: 0 | I30: 0 | J30: 0 | K30: 0 | L30: 2 | M30: 73 | N30: * | O30: * | P30: 2 | Q30: 0 | R30: 0 | S30: 0 | T30: NA | U30: NA | V30: 0 | W30: 0 | X30: 0
A31: QOQ | B31: HUMBER AND NORTH YORKSHIRE ICB | C31: 0 | D31: NA | E31: NA | F31: 0 | G31: 0 | H31: 0 | I31: 0 | J31: 0 | K31: 0 | L31: 0 | M31: 0 | N31: NA | O31: NA | P31: 0 | Q31: 0 | R31: 0 | S31: 0 | T31: NA | U31: NA | V31: 0 | W31: 0 | X31: 0
A32: QOX | B32: BATH AND NORTH EAST SOMERSET, SWINDON AND WILTSHIRE ICB | C32: 1 | D32: * | E32: * | F32: * | G32: * | H32: * | I32: * | J32: * | K32: * | L32: 1 | M32: 86 | N32: * | O32: * | P32: * | Q32: * | R32: * | S32: 1 | T32: * | U32: * | V32: * | W32: * | X32: *
A33: QPM | B33: NORTHAMPTONSHIRE ICB | C33: 0 | D33: NA | E33: NA | F33: 0 | G33: 0 | H33: 0 | I33: 0 | J33: 0 | K33: 0 | L33: 0 | M33: 0 | N33: NA | O33: NA | P33: 0 | Q33: 0 | R33: 0 | S33: 0 | T33: NA | U33: NA | V33: 0 | W33: 0 | X33: 0
A34: QR1 | B34: GLOUCESTERSHIRE ICB | C34: 11 | D34: 1 | E34: 0 | F34: 11 | G34: 0 | H34: 0 | I34: 0 | J34: 0 | K34: 0 | L34: 10 | M34: 0 | N34: 1 | O34: 0 | P34: 10 | Q34: 0 | R34: 0 | S34: 11 | T34: 1 | U34: 0 | V34: 11 | W34: 0 | X34: 0
A35: QRL | B35: HAMPSHIRE AND ISLE OF WIGHT ICB | C35: 19 | D35: 1 | E35: 0 | F35: 19 | G35: 0 | H35: 0 | I35: 0 | J35: 0 | K35: 0 | L35: 19 | M35: 783 | N35: 1 | O35: 0 | P35: 15 | Q35: 4 | R35: 0 | S35: 19 | T35: 1 | U35: 0 | V35: 19 | W35: 0 | X35: 0
A36: QRV | B36: NORTH WEST LONDON ICB | C36: 0 | D36: NA | E36: NA | F36: 0 | G36: 0 | H36: 0 | I36: 0 | J36: 0 | K36: 0 | L36: 0 | M36: 0 | N36: NA | O36: NA | P36: 0 | Q36: 0 | R36: 0 | S36: 0 | T36: NA | U36: NA | V36: 0 | W36: 0 | X36: 0
A37: QSL | B37: SOMERSET ICB | C37: 0 | D37: NA | E37: NA | F37: 0 | G37: 0 | H37: 0 | I37: 0 | J37: 0 | K37: 0 | L37: 0 | M37: 0 | N37: NA | O37: NA | P37: 0 | Q37: 0 | R37: 0 | S37: 0 | T37: NA | U37: NA | V37: 0 | W37: 0 | X37: 0
A38: QT1 | B38: NOTTINGHAM AND NOTTINGHAMSHIRE ICB | C38: 0 | D38: NA | E38: NA | F38: 0 | G38: 0 | H38: 0 | I38: 0 | J38: 0 | K38: 0 | L38: 0 | M38: 3 | N38: NA | O38: NA | P38: 0 | Q38: 0 | R38: 0 | S38: 0 | T38: NA | U38: NA | V38: 0 | W38: 0 | X38: 0
A39: QT6 | B39: CORNWALL AND THE ISLES OF SCILLY ICB | C39: 8 | D39: 0.75 | E39: 0.25 | F39: 6 | G39: 0 | H39: 0 | I39: 1 | J39: 1 | K39: 0 | L39: 8 | M39: 0 | N39: 0.875 | O39: 0.125 | P39: 6 | Q39: 1 | R39: 1 | S39: 8 | T39: 0.875 | U39: 0.125 | V39: 7 | W39: 0 | X39: 1
A40: QU9 | B40: BUCKINGHAMSHIRE, OXFORDSHIRE AND BERKSHIRE WEST ICB | C40: 21 | D40: 0.9523809524 | E40: 0.04761904762 | F40: 16 | G40: 4 | H40: 0 | I40: 0 | J40: 1 | K40: 0 | L40: 21 | M40: 2 | N40: 1 | O40: 0 | P40: 17 | Q40: 4 | R40: 0 | S40: 21 | T40: 1 | U40: 0 | V40: 21 | W40: 0 | X40: 0
A41: QUA | B41: BLACK COUNTRY ICB | C41: 0 | D41: NA | E41: NA | F41: 0 | G41: 0 | H41: 0 | I41: 0 | J41: 0 | K41: 0 | L41: 0 | M41: 0 | N41: NA | O41: NA | P41: 0 | Q41: 0 | R41: 0 | S41: 0 | T41: NA | U41: NA | V41: 0 | W41: 0 | X41: 0
A42: QUE | B42: CAMBRIDGESHIRE AND PETERBOROUGH ICB | C42: 4 | D42: * | E42: * | F42: * | G42: * | H42: * | I42: * | J42: * | K42: * | L42: 4 | M42: 4 | N42: * | O42: * | P42: * | Q42: * | R42: * | S42: 4 | T42: * | U42: * | V42: * | W42: * | X42: *
A43: QUY | B43: BRISTOL, NORTH SOMERSET AND SOUTH GLOUCESTERSHIRE ICB | C43: 0 | D43: NA | E43: NA | F43: 0 | G43: 0 | H43: 0 | I43: 0 | J43: 0 | K43: 0 | L43: 0 | M43: 0 | N43: NA | O43: NA | P43: 0 | Q43: 0 | R43: 0 | S43: 0 | T43: NA | U43: NA | V43: 0 | W43: 0 | X43: 0
A44: QVV | B44: DORSET ICB | C44: 8 | D44: 0.625 | E44: 0.125 | F44: 3 | G44: 2 | H44: 2 | I44: 1 | J44: 0 | K44: 0 | L44: 8 | M44: 0 | N44: 0.875 | O44: 0.125 | P44: 6 | Q44: 1 | R44: 1 | S44: 8 | T44: 1 | U44: 0 | V44: 7 | W44: 1 | X44: 0
A45: QWE | B45: SOUTH WEST LONDON ICB | C45: 0 | D45: NA | E45: NA | F45: 0 | G45: 0 | H45: 0 | I45: 0 | J45: 0 | K45: 0 | L45: 0 | M45: 0 | N45: NA | O45: NA | P45: 0 | Q45: 0 | R45: 0 | S45: 0 | T45: NA | U45: NA | V45: 0 | W45: 0 | X45: 0
A46: QWO | B46: WEST YORKSHIRE ICB | C46: 22 | D46: 0.9090909091 | E46: 0.04545454545 | F46: 17 | G46: 3 | H46: 1 | I46: 0 | J46: 1 | K46: 0 | L46: 21 | M46: 46 | N46: 1 | O46: 0 | P46: 20 | Q46: 1 | R46: 0 | S46: 21 | T46: 1 | U46: 0 | V46: 20 | W46: 1 | X46: 0
A47: QWU | B47: COVENTRY AND WARWICKSHIRE ICB | C47: 4 | D47: * | E47: * | F47: * | G47: * | H47: * | I47: * | J47: * | K47: * | L47: 4 | M47: 10 | N47: * | O47: * | P47: * | Q47: * | R47: * | S47: 4 | T47: * | U47: * | V47: * | W47: * | X47: *
A48: QXU | B48: SURREY HEARTLANDS ICB | C48: 0 | D48: NA | E48: NA | F48: 0 | G48: 0 | H48: 0 | I48: 0 | J48: 0 | K48: 0 | L48: 0 | M48: 0 | N48: NA | O48: NA | P48: 0 | Q48: 0 | R48: 0 | S48: 0 | T48: NA | U48: NA | V48: 0 | W48: 0 | X48: 0
A49: QYG | B49: CHESHIRE AND MERSEYSIDE ICB | C49: 19 | D49: 1 | E49: 0 | F49: 18 | G49: 1 | H49: 0 | I49: 0 | J49: 0 | K49: 0 | L49: 0 | M49: 1 | N49: NA | O49: NA | P49: 0 | Q49: 0 | R49: 0 | S49: 0 | T49: NA | U49: NA | V49: 0 | W49: 0 | X49: 0

Sheet Organisations
A3: ICB Code | B3: Trust Code | C3: Trust Name | D3: Question 1 | G3: Question 1 | M3: Question 2 | Q3: Question 2 | T3: Question 3 | W3: Question 3 | Z3: Mode of Collection - Question 1
D4: Total Responses | E4: Percentage Positive | F4: Percentage Negative | G4: Breakdown of Responses | M4: Total Responses | N4: Total Eligible | O4: Percentage Positive | P4: Percentage Negative | Q4: Breakdown of Responses | T4: Total Responses | U4: Percentage Positive | V4: Percentage Negative | W4: Breakdown of Responses
G5: Very Good | H5: Good | I5: Neither Good nor Poor | J5: Poor | K5: Very Poor | L5: Don't Know | Q5: Yes definitely | R5: Yes to some extent | S5: No | W5: Yes definitely | X5: Yes to some extent | Y5: No | Z5: SMS | AA5: Smartphone | AB5: Smartphone After | AC5: Paper | AD5: Paper After | AE5: Telephone | AF5: Online | AG5: Other
C6: England | D6: 173 | E6: 0.9306358382 | F6: 0.04624277457 | G6: 138 | H6: 23 | I6: 3 | J6: 5 | K6: 3 | L6: 1 | M6: 150 | N6: 1658 | O6: 0.98 | P6: 0.02 | Q6: 129 | R6: 18 | S6: 3 | T6: 149 | U6: 0.9932885906 | V6: 0.006711409396 | W6: 145 | X6: 3 | Y6: 1 | Z6: 8 | AA6: 5 | AB6: 0 | AC6: 22 | AD6: 4 | AE6: 17 | AF6: 104 | AG6: 13
C7: Selection (excluding suppressed data) | D7: =SUBTOTAL(9,D8:D867) -> 173 | E7: =IFERROR((G7+H7)/SUM(G7:L7), "-") -> 0.9160839161 | F7: =IFERROR((J7+K7)/SUM(G7:L7), "-") -> 0.05594405594 | G7: =SUBTOTAL(9,G8:G867) -> 114 | H7: =SUBTOTAL(9,H8:H867) -> 17 | I7: =SUBTOTAL(9,I8:I867) -> 3 | J7: =SUBTOTAL(9,J8:J867) -> 5 | K7: =SUBTOTAL(9,K8:K867) -> 3 | L7: =SUBTOTAL(9,L8:L867) -> 1 | M7: =SUBTOTAL(9,M8:M867) -> 150 | N7: =SUBTOTAL(9,N8:N867) -> 1658 | O7: =IFERROR((Q7+R7)/SUM(Q7:S7), "-") -> 0.9752066116 | P7: =IFERROR(S7/SUM(Q7:S7), "-") -> 0.02479338843 | Q7: =SUBTOTAL(9,Q8:Q867) -> 103 | R7: =SUBTOTAL(9,R8:R867) -> 15 | S7: =SUBTOTAL(9,S8:S867) -> 3 | T7: =SUBTOTAL(9,T8:T867) -> 149 | U7: =IFERROR((W7+X7)/SUM(W7:Y7), "-") -> 0.9918032787 | V7: =IFERROR(Y7/SUM(W7:Y7), "-") -> 0.008196721311 | W7: =SUBTOTAL(9,W8:W867) -> 119 | X7: 2 | Y7: 1 | Z7: 3 | AA7: 0 | AB7: 0 | AC7: 20 | AD7: 0 | AE7: 13 | AF7: 94 | AG7: 13
A8: QE1 | B8: RW5 | C8: LANCASHIRE & SOUTH CUMBRIA NHS FOUNDATION TRUST | D8: 0 | E8: NA | F8: NA | G8: 0 | H8: 0 | I8: 0 | J8: 0 | K8: 0 | L8: 0 | M8: 0 | N8: 0 | O8: NA | P8: NA | Q8: 0 | R8: 0 | S8: 0 | T8: 0 | U8: NA | V8: NA | W8: 0 | X8: 0 | Y8: 0 | Z8: 0 | AA8: 0 | AB8: 0 | AC8: 0 | AD8: 0 | AE8: 0 | AF8: 0 | AG8: 0
A9: QF7 | B9: RXE | C9: ROTHERHAM DONCASTER AND SOUTH HUMBER NHS FOUNDATION TRUST | D9: 1 | E9: * | F9: * | G9: * | H9: * | I9: * | J9: * | K9: * | L9: * | M9: 0 | N9: 0 | O9: NA | P9: NA | Q9: 0 | R9: 0 | S9: 0 | T9: 0 | U9: NA | V9: NA | W9: 0 | X9: 0 | Y9: 0 | Z9: * | AA9: * | AB9: * | AC9: * | AD9: * | AE9: * | AF9: * | AG9: *
A10: QF7 | B10: RHQ | C10: SHEFFIELD TEACHING HOSPITALS NHS FOUNDATION TRUST | D10: 4 | E10: * | F10: * | G10: * | H10: * | I10: * | J10: * | K10: * | L10: * | M10: 4 | N10: 286 | O10: * | P10: * | Q10: * | R10: * | S10: * | T10: 4 | U10: * | V10: * | W10: * | X10: * | Y10: * | Z10: * | AA10: * | AB10: * | AC10: * | AD10: * | AE10: * | AF10: * | AG10: *
A11: QF7 | B11: RFR | C11: THE ROTHERHAM NHS FOUNDATION TRUST | D11: 0 | E11: NA | F11: NA | G11: 0 | H11: 0 | I11: 0 | J11: 0 | K11: 0 | L11: 0 | M11: 0 | N11: 0 | O11: NA | P11: NA | Q11: 0 | R11: 0 | S11: 0 | T11: 0 | U11: NA | V11: NA | W11: 0 | X11: 0 | Y11: 0 | Z11: 0 | AA11: 0 | AB11: 0 | AC11: 0 | AD11: 0 | AE11: 0 | AF11: 0 | AG11: 0
A12: QHG | B12: RD8 | C12: MILTON KEYNES UNIVERSITY HOSPITAL NHS FOUNDATION TRUST | D12: 9 | E12: 1 | F12: 0 | G12: 8 | H12: 1 | I12: 0 | J12: 0 | K12: 0 | L12: 0 | M12: 9 | N12: 47 | O12: 1 | P12: 0 | Q12: 9 | R12: 0 | S12: 0 | T12: 9 | U12: 1 | V12: 0 | W12: 9 | X12: 0 | Y12: 0 | Z12: 0 | AA12: 0 | AB12: 0 | AC12: 0 | AD12: 0 | AE12: 0 | AF12: 9 | AG12: 0
A13: QHL | B13: RYW | C13: BIRMINGHAM COMMUNITY HEALTHCARE NHS FOUNDATION TRUST | D13: 2 | E13: * | F13: * | G13: * | H13: * | I13: * | J13: * | K13: * | L13: * | M13: 2 | N13: 0 | O13: * | P13: * | Q13: * | R13: * | S13: * | T13: 2 | U13: * | V13: * | W13: * | X13: * | Y13: * | Z13: * | AA13: * | AB13: * | AC13: * | AD13: * | AE13: * | AF13: * | AG13: *
A14: QHL | B14: RXK | C14: SANDWELL AND WEST BIRMINGHAM HOSPITALS NHS TRUST | D14: 0 | E14: NA | F14: NA | G14: 0 | H14: 0 | I14: 0 | J14: 0 | K14: 0 | L14: 0 | M14: 0 | N14: 0 | O14: NA | P14: NA | Q14: 0 | R14: 0 | S14: 0 | T14: 0 | U14: NA | V14: NA | W14: 0 | X14: 0 | Y14: 0 | Z14: 0 | AA14: 0 | AB14: 0 | AC14: 0 | AD14: 0 | AE14: 0 | AF14: 0 | AG14: 0
A15: QHM | B15: RXP | C15: COUNTY DURHAM AND DARLINGTON NHS FOUNDATION TRUST | D15: 0 | E15: NA | F15: NA | G15: 0 | H15: 0 | I15: 0 | J15: 0 | K15: 0 | L15: 0 | M15: 0 | N15: 0 | O15: NA | P15: NA | Q15: 0 | R15: 0 | S15: 0 | T15: 0 | U15: NA | V15: NA | W15: 0 | X15: 0 | Y15: 0 | Z15: 0 | AA15: 0 | AB15: 0 | AC15: 0 | AD15: 0 | AE15: 0 | AF15: 0 | AG15: 0
A16: QHM | B16: RR7 | C16: GATESHEAD HEALTH NHS FOUNDATION TRUST | D16: 0 | E16: NA | F16: NA | G16: 0 | H16: 0 | I16: 0 | J16: 0 | K16: 0 | L16: 0 | M16: 0 | N16: 0 | O16: NA | P16: NA | Q16: 0 | R16: 0 | S16: 0 | T16: 0 | U16: NA | V16: NA | W16: 0 | X16: 0 | Y16: 0 | Z16: 0 | AA16: 0 | AB16: 0 | AC16: 0 | AD16: 0 | AE16: 0 | AF16: 0 | AG16: 0
A17: QHM | B17: RNN | C17: NORTH CUMBRIA INTEGRATED CARE NHS FOUNDATION TRUST | D17: 1 | E17: * | F17: * | G17: * | H17: * | I17: * | J17: * | K17: * | L17: * | M17: 1 | N17: 4 | O17: * | P17: * | Q17: * | R17: * | S17: * | T17: 1 | U17: * | V17: * | W17: * | X17: * | Y17: * | Z17: * | AA17: * | AB17: * | AC17: * | AD17: * | AE17: * | AF17: * | AG17: *
A18: QHM | B18: RVW | C18: NORTH TEES AND HARTLEPOOL NHS FOUNDATION TRUST | D18: 3 | E18: * | F18: * | G18: * | H18: * | I18: * | J18: * | K18: * | L18: * | M18: 1 | N18: 8 | O18: * | P18: * | Q18: * | R18: * | S18: * | T18: 1 | U18: * | V18: * | W18: * | X18: * | Y18: * | Z18: * | AA18: * | AB18: * | AC18: * | AD18: * | AE18: * | AF18: * | AG18: *
A19: QHM | B19: RTF | C19: NORTHUMBRIA HEALTHCARE NHS FOUNDATION TRUST | D19: 0 | E19: NA | F19: NA | G19: 0 | H19: 0 | I19: 0 | J19: 0 | K19: 0 | L19: 0 | M19: 0 | N19: 0 | O19: NA | P19: NA | Q19: 0 | R19: 0 | S19: 0 | T19: 0 | U19: NA | V19: NA | W19: 0 | X19: 0 | Y19: 0 | Z19: 0 | AA19: 0 | AB19: 0 | AC19: 0 | AD19: 0 | AE19: 0 | AF19: 0 | AG19: 0
A20: QHM | B20: RTR | C20: SOUTH TEES HOSPITALS NHS FOUNDATION TRUST | D20: 0 | E20: NA | F20: NA | G20: 0 | H20: 0 | I20: 0 | J20: 0 | K20: 0 | L20: 0 | M20: 0 | N20: 0 | O20: NA | P20: NA | Q20: 0 | R20: 0 | S20: 0 | T20: 0 | U20: NA | V20: NA | W20: 0 | X20: 0 | Y20: 0 | Z20: 0 | AA20: 0 | AB20: 0 | AC20: 0 | AD20: 0 | AE20: 0 | AF20: 0 | AG20: 0
A21: QHM | B21: R0B | C21: SOUTH TYNESIDE AND SUNDERLAND NHS FOUNDATION TRUST | D21: 1 | E21: * | F21: * | G21: * | H21: * | I21: * | J21: * | K21: * | L21: * | M21: 1 | N21: 0 | O21: * | P21: * | Q21: * | R21: * | S21: * | T21: 1 | U21: * | V21: * | W21: * | X21: * | Y21: * | Z21: * | AA21: * | AB21: * | AC21: * | AD21: * | AE21: * | AF21: * | AG21: *
A22: QHM | B22: RTD | C22: THE NEWCASTLE UPON TYNE HOSPITALS NHS FOUNDATION TRUST | D22: 0 | E22: NA | F22: NA | G22: 0 | H22: 0 | I22: 0 | J22: 0 | K22: 0 | L22: 0 | M22: 0 | N22: 15 | O22: NA | P22: NA | Q22: 0 | R22: 0 | S22: 0 | T22: 0 | U22: NA | V22: NA | W22: 0 | X22: 0 | Y22: 0 | Z22: 0 | AA22: 0 | AB22: 0 | AC22: 0 | AD22: 0 | AE22: 0 | AF22: 0 | AG22: 0
A23: QJ2 | B23: RY8 | C23: DERBYSHIRE COMMUNITY HEALTH SERVICES NHS FOUNDATION TRUST | D23: 0 | E23: NA | F23: NA | G23: 0 | H23: 0 | I23: 0 | J23: 0 | K23: 0 | L23: 0 | M23: 0 | N23: 0 | O23: NA | P23: NA | Q23: 0 | R23: 0 | S23: 0 | T23: 0 | U23: NA | V23: NA | W23: 0 | X23: 0 | Y23: 0 | Z23: 0 | AA23: 0 | AB23: 0 | AC23: 0 | AD23: 0 | AE23: 0 | AF23: 0 | AG23: 0
A24: QJG | B24: RDE | C24: EAST SUFFOLK AND NORTH ESSEX NHS FOUNDATION TRUST | D24: 0 | E24: NA | F24: NA | G24: 0 | H24: 0 | I24: 0 | J24: 0 | K24: 0 | L24: 0 | M24: 0 | N24: 0 | O24: NA | P24: NA | Q24: 0 | R24: 0 | S24: 0 | T24: 0 | U24: NA | V24: NA | W24: 0 | X24: 0 | Y24: 0 | Z24: 0 | AA24: 0 | AB24: 0 | AC24: 0 | AD24: 0 | AE24: 0 | AF24: 0 | AG24: 0
A25: QJG | B25: NQA | C25: PROVIDE | D25: 0 | E25: NA | F25: NA | G25: 0 | H25: 0 | I25: 0 | J25: 0 | K25: 0 | L25: 0 | M25: 0 | N25: 0 | O25: NA | P25: NA | Q25: 0 | R25: 0 | S25: 0 | T25: 0 | U25: NA | V25: NA | W25: 0 | X25: 0 | Y25: 0 | Z25: 0 | AA25: 0 | AB25: 0 | AC25: 0 | AD25: 0 | AE25: 0 | AF25: 0 | AG25: 0
A26: QJK | B26: NR5 | C26: LIVEWELL SOUTHWEST | D26: 1 | E26: * | F26: * | G26: * | H26: * | I26: * | J26: * | K26: * | L26: * | M26: 1 | N26: 1 | O26: * | P26: * | Q26: * | R26: * | S26: * | T26: 1 | U26: * | V26: * | W26: * | X26: * | Y26: * | Z26: * | AA26: * | AB26: * | AC26: * | AD26: * | AE26: * | AF26: * | AG26: *
A27: QJM | B27: RY5 | C27: LINCOLNSHIRE COMMUNITY HEALTH SERVICES NHS TRUST | D27: 4 | E27: * | F27: * | G27: * | H27: * | I27: * | J27: * | K27: * | L27: * | M27: 4 | N27: 132 | O27: * | P27: * | Q27: * | R27: * | S27: * | T27: 4 | U27: * | V27: * | W27: * | X27: * | Y27: * | Z27: * | AA27: * | AB27: * | AC27: * | AD27: * | AE27: * | AF27: * | AG27: *
A28: QK1 | B28: RWE | C28: UNIVERSITY HOSPITALS OF LEICESTER NHS TRUST | D28: 1 | E28: * | F28: * | G28: * | H28: * | I28: * | J28: * | K28: * | L28: * | M28: 1 | N28: 44 | O28: * | P28: * | Q28: * | R28: * | S28: * | T28: 1 | U28: * | V28: * | W28: * | X28: * | Y28: * | Z28: * | AA28: * | AB28: * | AC28: * | AD28: * | AE28: * | AF28: * | AG28: *
A29: QKK | B29: RJ1 | C29: GUY'S AND ST THOMAS' NHS FOUNDATION TRUST | D29: 0 | E29: NA | F29: NA | G29: 0 | H29: 0 | I29: 0 | J29: 0 | K29: 0 | L29: 0 | M29: 0 | N29: 14 | O29: NA | P29: NA | Q29: 0 | R29: 0 | S29: 0 | T29: 0 | U29: NA | V29: NA | W29: 0 | X29: 0 | Y29: 0 | Z29: 0 | AA29: 0 | AB29: 0 | AC29: 0 | AD29: 0 | AE29: 0 | AF29: 0 | AG29: 0
A30: QKS | B30: DWN | C30: WEST KENT PRIMARY CARE | D30: 5 | E30: 1 | F30: 0 | G30: 2 | H30: 3 | I30: 0 | J30: 0 | K30: 0 | L30: 0 | M30: 5 | N30: 14 | O30: 1 | P30: 0 | Q30: 3 | R30: 2 | S30: 0 | T30: 5 | U30: 1 | V30: 0 | W30: 5 | X30: 0 | Y30: 0 | Z30: 0 | AA30: 0 | AB30: 0 | AC30: 0 | AD30: 0 | AE30: 0 | AF30: 5 | AG30: 0
A31: QMF | B31: RWK | C31: EAST LONDON NHS FOUNDATION TRUST | D31: 0 | E31: NA | F31: NA | G31: 0 | H31: 0 | I31: 0 | J31: 0 | K31: 0 | L31: 0 | M31: 0 | N31: 75 | O31: NA | P31: NA | Q31: 0 | R31: 0 | S31: 0 | T31: 0 | U31: NA | V31: NA | W31: 0 | X31: 0 | Y31: 0 | Z31: 0 | AA31: 0 | AB31: 0 | AC31: 0 | AD31: 0 | AE31: 0 | AF31: 0 | AG31: 0
A32: QMF | B32: RQX | C32: HOMERTON HEALTHCARE NHS FOUNDATION TRUST | D32: 8 | E32: 0.875 | F32: 0 | G32: 6 | H32: 1 | I32: 0 | J32: 0 | K32: 0 | L32: 1 | M32: 7 | N32: 7 | O32: 0.8571428571 | P32: 0.1428571429 | Q32: 5 | R32: 1 | S32: 1 | T32: 7 | U32: 1 | V32: 0 | W32: 7 | X32: 0 | Y32: 0 | Z32: 0 | AA32: 0 | AB32: 0 | AC32: 0 | AD32: 0 | AE32: 0 | AF32: 8 | AG32: 0
A33: QMM | B33: RY3 | C33: NORFOLK COMMUNITY HEALTH AND CARE NHS TRUST | D33: 0 | E33: NA | F33: NA | G33: 0 | H33: 0 | I33: 0 | J33: 0 | K33: 0 | L33: 0 | M33: 0 | N33: 0 | O33: NA | P33: NA | Q33: 0 | R33: 0 | S33: 0 | T33: 0 | U33: NA | V33: NA | W33: 0 | X33: 0 | Y33: 0 | Z33: 0 | AA33: 0 | AB33: 0 | AC33: 0 | AD33: 0 | AE33: 0 | AF33: 0 | AG33: 0
A34: QNC | B34: RRE | C34: MIDLANDS PARTNERSHIP UNIVERSITY NHS FOUNDATION TRUST | D34: 13 | E34: 0.7692307692 | F34: 0.2307692308 | G34: 8 | H34: 2 | I34: 0 | J34: 3 | K34: 0 | L34: 0 | M34: 13 | N34: 0 | O34: 1 | P34: 0 | Q34: 12 | R34: 1 | S34: 0 | T34: 13 | U34: 1 | V34: 0 | W34: 13 | X34: 0 | Y34: 0 | Z34: 0 | AA34: 0 | AB34: 0 | AC34: 0 | AD34: 0 | AE34: 13 | AF34: 0 | AG34: 0
A35: QNX | B35: RXC | C35: EAST SUSSEX HEALTHCARE NHS TRUST | D35: 0 | E35: NA | F35: NA | G35: 0 | H35: 0 | I35: 0 | J35: 0 | K35: 0 | L35: 0 | M35: 0 | N35: 0 | O35: NA | P35: NA | Q35: 0 | R35: 0 | S35: 0 | T35: 0 | U35: NA | V35: NA | W35: 0 | X35: 0 | Y35: 0 | Z35: 0 | AA35: 0 | AB35: 0 | AC35: 0 | AD35: 0 | AE35: 0 | AF35: 0 | AG35: 0
A36: QNX | B36: RDR | C36: SUSSEX COMMUNITY NHS FOUNDATION TRUST | D36: 2 | E36: * | F36: * | G36: * | H36: * | I36: * | J36: * | K36: * | L36: * | M36: 2 | N36: 2 | O36: * | P36: * | Q36: * | R36: * | S36: * | T36: 2 | U36: * | V36: * | W36: * | X36: * | Y36: * | Z36: * | AA36: * | AB36: * | AC36: * | AD36: * | AE36: * | AF36: * | AG36: *
A37: QOC | B37: R1D | C37: SHROPSHIRE COMMUNITY HEALTH NHS TRUST | D37: 1 | E37: * | F37: * | G37: * | H37: * | I37: * | J37: * | K37: * | L37: * | M37: 1 | N37: 1 | O37: * | P37: * | Q37: * | R37: * | S37: * | T37: 1 | U37: * | V37: * | W37: * | X37: * | Y37: * | Z37: * | AA37: * | AB37: * | AC37: * | AD37: * | AE37: * | AF37: * | AG37: *
A38: QOP | B38: RMC | C38: BOLTON NHS FOUNDATION TRUST | D38: 0 | E38: NA | F38: NA | G38: 0 | H38: 0 | I38: 0 | J38: 0 | K38: 0 | L38: 0 | M38: 0 | N38: 0 | O38: NA | P38: NA | Q38: 0 | R38: 0 | S38: 0 | T38: 0 | U38: NA | V38: NA | W38: 0 | X38: 0 | Y38: 0 | Z38: 0 | AA38: 0 | AB38: 0 | AC38: 0 | AD38: 0 | AE38: 0 | AF38: 0 | AG38: 0
A39: QOP | B39: R0A | C39: MANCHESTER UNIVERSITY NHS FOUNDATION TRUST | D39: 0 | E39: NA | F39: NA | G39: 0 | H39: 0 | I39: 0 | J39: 0 | K39: 0 | L39: 0 | M39: 2 | N39: 69 | O39: * | P39: * | Q39: * | R39: * | S39: * | T39: 0 | U39: NA | V39: NA | W39: 0 | X39: 0 | Y39: 0 | Z39: 0 | AA39: 0 | AB39: 0 | AC39: 0 | AD39: 0 | AE39: 0 | AF39: 0 | AG39: 0
A40: QOP | B40: RM3 | C40: NORTHERN CARE ALLIANCE NHS FOUNDATION TRUST | D40: 0 | E40: NA | F40: NA | G40: 0 | H40: 0 | I40: 0 | J40: 0 | K40: 0 | L40: 0 | M40: 0 | N40: 0 | O40: NA | P40: NA | Q40: 0 | R40: 0 | S40: 0 | T40: 0 | U40: NA | V40: NA | W40: 0 | X40: 0 | Y40: 0 | Z40: 0 | AA40: 0 | AB40: 0 | AC40: 0 | AD40: 0 | AE40: 0 | AF40: 0 | AG40: 0
A41: QOP | B41: RWJ | C41: STOCKPORT NHS FOUNDATION TRUST | D41: 0 | E41: NA | F41: NA | G41: 0 | H41: 0 | I41: 0 | J41: 0 | K41: 0 | L41: 0 | M41: 0 | N41: 0 | O41: NA | P41: NA | Q41: 0 | R41: 0 | S41: 0 | T41: 0 | U41: NA | V41: NA | W41: 0 | X41: 0 | Y41: 0 | Z41: 0 | AA41: 0 | AB41: 0 | AC41: 0 | AD41: 0 | AE41: 0 | AF41: 0 | AG41: 0
A42: QOP | B42: RMP | C42: TAMESIDE AND GLOSSOP INTEGRATED CARE NHS FOUNDATION TRUST | D42: 0 | E42: NA | F42: NA | G42: 0 | H42: 0 | I42: 0 | J42: 0 | K42: 0 | L42: 0 | M42: 0 | N42: 4 | O42: NA | P42: NA | Q42: 0 | R42: 0 | S42: 0 | T42: 0 | U42: NA | V42: NA | W42: 0 | X42: 0 | Y42: 0 | Z42: 0 | AA42: 0 | AB42: 0 | AC42: 0 | AD42: 0 | AE42: 0 | AF42: 0 | AG42: 0
A43: QOP | B43: RRF | C43: WRIGHTINGTON, WIGAN AND LEIGH NHS FOUNDATION TRUST | D43: 0 | E43: NA | F43: NA | G43: 0 | H43: 0 | I43: 0 | J43: 0 | K43: 0 | L43: 0 | M43: 0 | N43: 0 | O43: NA | P43: NA | Q43: 0 | R43: 0 | S43: 0 | T43: 0 | U43: NA | V43: NA | W43: 0 | X43: 0 | Y43: 0 | Z43: 0 | AA43: 0 | AB43: 0 | AC43: 0 | AD43: 0 | AE43: 0 | AF43: 0 | AG43: 0
A44: QOQ | B44: RJL | C44: NORTHERN LINCOLNSHIRE AND GOOLE NHS FOUNDATION TRUST | D44: 0 | E44: NA | F44: NA | G44: 0 | H44: 0 | I44: 0 | J44: 0 | K44: 0 | L44: 0 | M44: 0 | N44: 0 | O44: NA | P44: NA | Q44: 0 | R44: 0 | S44: 0 | T44: 0 | U44: NA | V44: NA | W44: 0 | X44: 0 | Y44: 0 | Z44: 0 | AA44: 0 | AB44: 0 | AC44: 0 | AD44: 0 | AE44: 0 | AF44: 0 | AG44: 0
A45: QOQ | B45: RCB | C45: YORK AND SCARBOROUGH TEACHING HOSPITALS NHS FOUNDATION TRUST | D45: 0 | E45: NA | F45: NA | G45: 0 | H45: 0 | I45: 0 | J45: 0 | K45: 0 | L45: 0 | M45: 0 | N45: 0 | O45: NA | P45: NA | Q45: 0 | R45: 0 | S45: 0 | T45: 0 | U45: NA | V45: NA | W45: 0 | X45: 0 | Y45: 0 | Z45: 0 | AA45: 0 | AB45: 0 | AC45: 0 | AD45: 0 | AE45: 0 | AF45: 0 | AG45: 0
A46: QOX | B46: AXG | C46: WILTSHIRE HEALTH & CARE | D46: 1 | E46: * | F46: * | G46: * | H46: * | I46: * | J46: * | K46: * | L46: * | M46: 1 | N46: 86 | O46: * | P46: * | Q46: * | R46: * | S46: * | T46: 1 | U46: * | V46: * | W46: * | X46: * | Y46: * | Z46: * | AA46: * | AB46: * | AC46: * | AD46: * | AE46: * | AF46: * | AG46: *
A47: QPM | B47: RP1 | C47: NORTHAMPTONSHIRE HEALTHCARE NHS FOUNDATION TRUST | D47: 0 | E47: NA | F47: NA | G47: 0 | H47: 0 | I47: 0 | J47: 0 | K47: 0 | L47: 0 | M47: 0 | N47: 0 | O47: NA | P47: NA | Q47: 0 | R47: 0 | S47: 0 | T47: 0 | U47: NA | V47: NA | W47: 0 | X47: 0 | Y47: 0 | Z47: 0 | AA47: 0 | AB47: 0 | AC47: 0 | AD47: 0 | AE47: 0 | AF47: 0 | AG47: 0
A48: QR1 | B48: RTQ | C48: GLOUCESTERSHIRE HEALTH AND CARE NHS FOUNDATION TRUST | D48: 11 | E48: 1 | F48: 0 | G48: 11 | H48: 0 | I48: 0 | J48: 0 | K48: 0 | L48: 0 | M48: 10 | N48: 0 | O48: 1 | P48: 0 | Q48: 10 | R48: 0 | S48: 0 | T48: 11 | U48: 1 | V48: 0 | W48: 11 | X48: 0 | Y48: 0 | Z48: 0 | AA48: 0 | AB48: 0 | AC48: 0 | AD48: 0 | AE48: 0 | AF48: 11 | AG48: 0
A49: QRL | B49: RW1 | C49: HAMPSHIRE AND ISLE OF WIGHT HEALTHCARE NHS FOUNDATION TRUST | D49: 19 | E49: 1 | F49: 0 | G49: 19 | H49: 0 | I49: 0 | J49: 0 | K49: 0 | L49: 0 | M49: 19 | N49: 783 | O49: 1 | P49: 0 | Q49: 15 | R49: 4 | S49: 0 | T49: 19 | U49: 1 | V49: 0 | W49: 19 | X49: 0 | Y49: 0 | Z49: 0 | AA49: 0 | AB49: 0 | AC49: 0 | AD49: 0 | AE49: 0 | AF49: 19 | AG49: 0
A50: QRV | B50: RYJ | C50: IMPERIAL COLLEGE HEALTHCARE NHS TRUST | D50: 0 | E50: NA | F50: NA | G50: 0 | H50: 0 | I50: 0 | J50: 0 | K50: 0 | L50: 0 | M50: 0 | N50: 0 | O50: NA | P50: NA | Q50: 0 | R50: 0 | S50: 0 | T50: 0 | U50: NA | V50: NA | W50: 0 | X50: 0 | Y50: 0 | Z50: 0 | AA50: 0 | AB50: 0 | AC50: 0 | AD50: 0 | AE50: 0 | AF50: 0 | AG50: 0
A51: QRV | B51: R1K | C51: LONDON NORTH WEST UNIVERSITY HEALTHCARE NHS TRUST | D51: 0 | E51: NA | F51: NA | G51: 0 | H51: 0 | I51: 0 | J51: 0 | K51: 0 | L51: 0 | M51: 0 | N51: 0 | O51: NA | P51: NA | Q51: 0 | R51: 0 | S51: 0 | T51: 0 | U51: NA | V51: NA | W51: 0 | X51: 0 | Y51: 0 | Z51: 0 | AA51: 0 | AB51: 0 | AC51: 0 | AD51: 0 | AE51: 0 | AF51: 0 | AG51: 0
A52: QT1 | B52: NR3 | C52: NOTTINGHAM CITYCARE PARTNERSHIP | D52: 0 | E52: NA | F52: NA | G52: 0 | H52: 0 | I52: 0 | J52: 0 | K52: 0 | L52: 0 | M52: 0 | N52: 3 | O52: NA | P52: NA | Q52: 0 | R52: 0 | S52: 0 | T52: 0 | U52: NA | V52: NA | W52: 0 | X52: 0 | Y52: 0 | Z52: 0 | AA52: 0 | AB52: 0 | AC52: 0 | AD52: 0 | AE52: 0 | AF52: 0 | AG52: 0
A53: QT6 | B53: REF | C53: ROYAL CORNWALL HOSPITALS NHS TRUST | D53: 8 | E53: 0.75 | F53: 0.25 | G53: 6 | H53: 0 | I53: 0 | J53: 1 | K53: 1 | L53: 0 | M53: 8 | N53: 0 | O53: 0.875 | P53: 0.125 | Q53: 6 | R53: 1 | S53: 1 | T53: 8 | U53: 0.875 | V53: 0.125 | W53: 7 | X53: 0 | Y53: 1 | Z53: 0 | AA53: 0 | AB53: 0 | AC53: 0 | AD53: 0 | AE53: 0 | AF53: 8 | AG53: 0
A54: QU9 | B54: RXQ | C54: BUCKINGHAMSHIRE HEALTHCARE NHS TRUST | D54: 0 | E54: NA | F54: NA | G54: 0 | H54: 0 | I54: 0 | J54: 0 | K54: 0 | L54: 0 | M54: 0 | N54: 2 | O54: NA | P54: NA | Q54: 0 | R54: 0 | S54: 0 | T54: 0 | U54: NA | V54: NA | W54: 0 | X54: 0 | Y54: 0 | Z54: 0 | AA54: 0 | AB54: 0 | AC54: 0 | AD54: 0 | AE54: 0 | AF54: 0 | AG54: 0
A55: QU9 | B55: RTH | C55: OXFORD UNIVERSITY HOSPITALS NHS FOUNDATION TRUST | D55: 21 | E55: 0.9523809524 | F55: 0.04761904762 | G55: 16 | H55: 4 | I55: 0 | J55: 0 | K55: 1 | L55: 0 | M55: 21 | N55: 0 | O55: 1 | P55: 0 | Q55: 17 | R55: 4 | S55: 0 | T55: 21 | U55: 1 | V55: 0 | W55: 21 | X55: 0 | Y55: 0 | Z55: 1 | AA55: 0 | AB55: 0 | AC55: 20 | AD55: 0 | AE55: 0 | AF55: 0 | AG55: 0
A56: QUA | B56: RL4 | C56: THE ROYAL WOLVERHAMPTON NHS TRUST | D56: 0 | E56: NA | F56: NA | G56: 0 | H56: 0 | I56: 0 | J56: 0 | K56: 0 | L56: 0 | M56: 0 | N56: 0 | O56: NA | P56: NA | Q56: 0 | R56: 0 | S56: 0 | T56: 0 | U56: NA | V56: NA | W56: 0 | X56: 0 | Y56: 0 | Z56: 0 | AA56: 0 | AB56: 0 | AC56: 0 | AD56: 0 | AE56: 0 | AF56: 0 | AG56: 0
A57: QUA | B57: RBK | C57: WALSALL HEALTHCARE NHS TRUST | D57: 0 | E57: NA | F57: NA | G57: 0 | H57: 0 | I57: 0 | J57: 0 | K57: 0 | L57: 0 | M57: 0 | N57: 0 | O57: NA | P57: NA | Q57: 0 | R57: 0 | S57: 0 | T57: 0 | U57: NA | V57: NA | W57: 0 | X57: 0 | Y57: 0 | Z57: 0 | AA57: 0 | AB57: 0 | AC57: 0 | AD57: 0 | AE57: 0 | AF57: 0 | AG57: 0
A58: QUE | B58: RT1 | C58: CAMBRIDGESHIRE AND PETERBOROUGH NHS FOUNDATION TRUST | D58: 4 | E58: * | F58: * | G58: * | H58: * | I58: * | J58: * | K58: * | L58: * | M58: 4 | N58: 4 | O58: * | P58: * | Q58: * | R58: * | S58: * | T58: 4 | U58: * | V58: * | W58: * | X58: * | Y58: * | Z58: * | AA58: * | AB58: * | AC58: * | AD58: * | AE58: * | AF58: * | AG58: *
A59: QVV | B59: RDY | C59: DORSET HEALTHCARE UNIVERSITY NHS FOUNDATION TRUST | D59: 8 | E59: 0.625 | F59: 0.125 | G59: 3 | H59: 2 | I59: 2 | J59: 1 | K59: 0 | L59: 0 | M59: 8 | N59: 0 | O59: 0.875 | P59: 0.125 | Q59: 6 | R59: 1 | S59: 1 | T59: 8 | U59: 1 | V59: 0 | W59: 7 | X59: 1 | Y59: 0 | Z59: 0 | AA59: 0 | AB59: 0 | AC59: 0 | AD59: 0 | AE59: 0 | AF59: 8 | AG59: 0
A60: QWE | B60: RAX | C60: KINGSTON AND RICHMOND NHS FOUNDATION TRUST | D60: 0 | E60: NA | F60: NA | G60: 0 | H60: 0 | I60: 0 | J60: 0 | K60: 0 | L60: 0 | M60: 0 | N60: 0 | O60: NA | P60: NA | Q60: 0 | R60: 0 | S60: 0 | T60: 0 | U60: NA | V60: NA | W60: 0 | X60: 0 | Y60: 0 | Z60: 0 | AA60: 0 | AB60: 0 | AC60: 0 | AD60: 0 | AE60: 0 | AF60: 0 | AG60: 0
A61: QWE | B61: RJ7 | C61: ST GEORGE'S UNIVERSITY HOSPITALS NHS FOUNDATION TRUST | D61: 0 | E61: NA | F61: NA | G61: 0 | H61: 0 | I61: 0 | J61: 0 | K61: 0 | L61: 0 | M61: 0 | N61: 0 | O61: NA | P61: NA | Q61: 0 | R61: 0 | S61: 0 | T61: 0 | U61: NA | V61: NA | W61: 0 | X61: 0 | Y61: 0 | Z61: 0 | AA61: 0 | AB61: 0 | AC61: 0 | AD61: 0 | AE61: 0 | AF61: 0 | AG61: 0
A62: QWO | B62: RCF | C62: AIREDALE NHS FOUNDATION TRUST | D62: 0 | E62: NA | F62: NA | G62: 0 | H62: 0 | I62: 0 | J62: 0 | K62: 0 | L62: 0 | M62: 0 | N62: 0 | O62: NA | P62: NA | Q62: 0 | R62: 0 | S62: 0 | T62: 0 | U62: NA | V62: NA | W62: 0 | X62: 0 | Y62: 0 | Z62: 0 | AA62: 0 | AB62: 0 | AC62: 0 | AD62: 0 | AE62: 0 | AF62: 0 | AG62: 0
A63: QWO | B63: RAE | C63: BRADFORD TEACHING HOSPITALS NHS FOUNDATION TRUST | D63: 0 | E63: NA | F63: NA | G63: 0 | H63: 0 | I63: 0 | J63: 0 | K63: 0 | L63: 0 | M63: 0 | N63: 0 | O63: NA | P63: NA | Q63: 0 | R63: 0 | S63: 0 | T63: 0 | U63: NA | V63: NA | W63: 0 | X63: 0 | Y63: 0 | Z63: 0 | AA63: 0 | AB63: 0 | AC63: 0 | AD63: 0 | AE63: 0 | AF63: 0 | AG63: 0
A64: QWO | B64: RWY | C64: CALDERDALE AND HUDDERSFIELD NHS FOUNDATION TRUST | D64: 7 | E64: 1 | F64: 0 | G64: 7 | H64: 0 | I64: 0 | J64: 0 | K64: 0 | L64: 0 | M64: 7 | N64: 7 | O64: 1 | P64: 0 | Q64: 7 | R64: 0 | S64: 0 | T64: 7 | U64: 1 | V64: 0 | W64: 7 | X64: 0 | Y64: 0 | Z64: 0 | AA64: 0 | AB64: 0 | AC64: 0 | AD64: 0 | AE64: 0 | AF64: 7 | AG64: 0
A65: QWO | B65: RXF | C65: MID YORKSHIRE TEACHING NHS TRUST | D65: 15 | E65: 0.8666666667 | F65: 0.06666666667 | G65: 10 | H65: 3 | I65: 1 | J65: 0 | K65: 1 | L65: 0 | M65: 14 | N65: 39 | O65: 1 | P65: 0 | Q65: 13 | R65: 1 | S65: 0 | T65: 14 | U65: 1 | V65: 0 | W65: 13 | X65: 1 | Y65: 0 | Z65: 2 | AA65: 0 | AB65: 0 | AC65: 0 | AD65: 0 | AE65: 0 | AF65: 0 | AG65: 13
A66: QWU | B66: RLT | C66: GEORGE ELIOT HOSPITAL NHS TRUST | D66: 0 | E66: NA | F66: NA | G66: 0 | H66: 0 | I66: 0 | J66: 0 | K66: 0 | L66: 0 | M66: 0 | N66: 0 | O66: NA | P66: NA | Q66: 0 | R66: 0 | S66: 0 | T66: 0 | U66: NA | V66: NA | W66: 0 | X66: 0 | Y66: 0 | Z66: 0 | AA66: 0 | AB66: 0 | AC66: 0 | AD66: 0 | AE66: 0 | AF66: 0 | AG66: 0
A67: QWU | B67: RJC | C67: SOUTH WARWICKSHIRE UNIVERSITY NHS FOUNDATION TRUST | D67: 4 | E67: * | F67: * | G67: * | H67: * | I67: * | J67: * | K67: * | L67: * | M67: 4 | N67: 4 | O67: * | P67: * | Q67: * | R67: * | S67: * | T67: 4 | U67: * | V67: * | W67: * | X67: * | Y67: * | Z67: * | AA67: * | AB67: * | AC67: * | AD67: * | AE67: * | AF67: * | AG67: *
A68: QWU | B68: RKB | C68: UNIVERSITY HOSPITALS COVENTRY AND WARWICKSHIRE NHS TRUST | D68: 0 | E68: NA | F68: NA | G68: 0 | H68: 0 | I68: 0 | J68: 0 | K68: 0 | L68: 0 | M68: 0 | N68: 6 | O68: NA | P68: NA | Q68: 0 | R68: 0 | S68: 0 | T68: 0 | U68: NA | V68: NA | W68: 0 | X68: 0 | Y68: 0 | Z68: 0 | AA68: 0 | AB68: 0 | AC68: 0 | AD68: 0 | AE68: 0 | AF68: 0 | AG68: 0
A69: QYG | B69: RXA | C69: CHESHIRE AND WIRRAL PARTNERSHIP NHS FOUNDATION TRUST | D69: 0 | E69: NA | F69: NA | G69: 0 | H69: 0 | I69: 0 | J69: 0 | K69: 0 | L69: 0 | M69: 0 | N69: 0 | O69: NA | P69: NA | Q69: 0 | R69: 0 | S69: 0 | T69: 0 | U69: NA | V69: NA | W69: 0 | X69: 0 | Y69: 0 | Z69: 0 | AA69: 0 | AB69: 0 | AC69: 0 | AD69: 0 | AE69: 0 | AF69: 0 | AG69: 0
A70: QYG | B70: RJN | C70: EAST CHESHIRE NHS TRUST | D70: 0 | E70: NA | F70: NA | G70: 0 | H70: 0 | I70: 0 | J70: 0 | K70: 0 | L70: 0 | M70: 0 | N70: 1 | O70: NA | P70: NA | Q70: 0 | R70: 0 | S70: 0 | T70: 0 | U70: NA | V70: NA | W70: 0 | X70: 0 | Y70: 0 | Z70: 0 | AA70: 0 | AB70: 0 | AC70: 0 | AD70: 0 | AE70: 0 | AF70: 0 | AG70: 0
A71: QYG | B71: RW4 | C71: MERSEY CARE NHS FOUNDATION TRUST | D71: 19 | E71: 1 | F71: 0 | G71: 18 | H71: 1 | I71: 0 | J71: 0 | K71: 0 | L71: 0 | M71: 0 | N71: 0 | O71: NA | P71: NA | Q71: 0 | R71: 0 | S71: 0 | T71: 0 | U71: NA | V71: NA | W71: 0 | X71: 0 | Y71: 0 | Z71: 0 | AA71: 0 | AB71: 0 | AC71: 0 | AD71: 0 | AE71: 0 | AF71: 19 | AG71: 0
A72: QYG | B72: RBT | C72: MID CHESHIRE HOSPITALS NHS FOUNDATION TRUST | D72: 0 | E72: NA | F72: NA | G72: 0 | H72: 0 | I72: 0 | J72: 0 | K72: 0 | L72: 0 | M72: 0 | N72: 0 | O72: NA | P72: NA | Q72: 0 | R72: 0 | S72: 0 | T72: 0 | U72: NA | V72: NA | W72: 0 | X72: 0 | Y72: 0 | Z72: 0 | AA72: 0 | AB72: 0 | AC72: 0 | AD72: 0 | AE72: 0 | AF72: 0 | AG72: 0

Sheet BS (hidden)
B1: Sort | C1: Region (LO) Code | D1: Region (LO) name | E1: Trust code | F1: Trust name | G1: Site Code | H1: Site Name | J1: Sort Lists: | K1: Sort range… | L1: Sort range… | M1: Sort range… | N1: Reference Region List: | O1: Code… | P1: Name… | Q1: Linked Region List: | R1: Code… | S1: Name… | T1: Reference Lists: | U1: Code… | V1: Code… | W1: Name… | X1: Code… | Y1: Name… | Z1: Trusts Linked Lists: | AA1: Code… | AB1: Name… | AC1: Sites Linked Lists: | AH1: CSV Headers
A2: Region (LO) | B2: 1 | C2: 1 | D2: 1 | E2: - | F2: - | G2: - | H2: - | K2: ICB Code | L2: ICB Code | M2: ICB Code | O2: QE1 | P2: LANCASHIRE AND SOUTH CUMBRIA ICB | R2: QE1 | S2: LANCASHIRE AND SOUTH CUMBRIA ICB | U2: QE1 | V2: RW5 | W2: LANCASHIRE & SOUTH CUMBRIA NHS FOUNDATION TRUST | AA2: AXG | AB2: AIREDALE NHS FOUNDATION TRUST | AH2: Breakdown | AI2: ICB Code | AJ2: Trust Code | AK2: Trust Name | AL2: Q1 - Total Responses | AM2: Q1 - Percentage Positive | AN2: Q1 - Percentage Negative | AO2: Q1 - Very Good | AP2: Q1 - Good | AQ2: Q1 - Neither Good nor Poor | AR2: Q1 - Poor | AS2: Q1 - Very Poor | AT2: Q1 - Don't Know | AU2: Q2 - Total Responses | AV2: Q2 - Total Eligible | AW2: Q2 - Percentage Positive | AX2: Q2 - Percentage Negative | AY2: Q2 - Yes definitely | AZ2: Q2 - Yes to some extent | BA2: Q2 - No | BB2: Q3 - Total Responses | BC2: Q3 - Percentage Positive | BD2: Q3 - Percentage Negative | BE2: Q3 - Yes definitely | BF2: Q3 - Yes to some extent | BG2: Q3 - No
A3: Trusts | B3: 1 | C3: 1 | D3: 1 | E3: 1 | F3: 1 | G3: - | H3: - | K3: ICB Name | L3: Organisation Code | M3: Trust Code | O3: QF7 | P3: SOUTH YORKSHIRE ICB | R3: QF7 | S3: SOUTH YORKSHIRE ICB | U3: QF7 | V3: RXE | W3: ROTHERHAM DONCASTER AND SOUTH HUMBER NHS FOUNDATION TRUST | AA3: DWN | AB3: BIRMINGHAM COMMUNITY HEALTHCARE NHS FOUNDATION TRUST
A4: Site | B4: 1 | C4: 1 | D4: 1 | E4: 1 | F4: 1 | G4: 1 | H4: 1 | K4: Total Responses - Q1 | L4: Organisation Name | M4: Trust Name | O4: QGH | P4: HEREFORDSHIRE AND WORCESTERSHIRE ICB | R4: QGH | S4: HEREFORDSHIRE AND WORCESTERSHIRE ICB | U4: QF7 | V4: RHQ | W4: SHEFFIELD TEACHING HOSPITALS NHS FOUNDATION TRUST | AA4: NQA | AB4: BOLTON NHS FOUNDATION TRUST | AH4: Collection Mode | AI4: ICB Code | AJ4: Trust Code | AK4: Trust Name | AL4: SMS | AM4: Smartphone | AN4: Smartphone After | AO4: Paper | AP4: Paper After | AQ4: Telephone | AR4: Online | AS4: Other
K5: Percentage Positive - Q1 | L5: Total Responses - Q1 | M5: Site Code | O5: QH8 | P5: MID AND SOUTH ESSEX ICB | R5: QH8 | S5: MID AND SOUTH ESSEX ICB | U5: QF7 | V5: RFR | W5: THE ROTHERHAM NHS FOUNDATION TRUST | AA5: NR3 | AB5: BRADFORD TEACHING HOSPITALS NHS FOUNDATION TRUST
K6: Percentage Negative - Q1 | L6: Percentage Positive - Q1 | M6: Site Name | O6: QHG | P6: BEDFORDSHIRE, LUTON AND MILTON KEYNES ICB | R6: QHG | S6: BEDFORDSHIRE, LUTON AND MILTON KEYNES ICB | U6: QHG | V6: RD8 | W6: MILTON KEYNES UNIVERSITY HOSPITAL NHS FOUNDATION TRUST | AA6: NR5 | AB6: BUCKINGHAMSHIRE HEALTHCARE NHS TRUST
K7: Very Good - Q1 | L7: Percentage Negative - Q1 | M7: Total Responses | O7: QHL | P7: BIRMINGHAM AND SOLIHULL ICB | R7: QHL | S7: BIRMINGHAM AND SOLIHULL ICB | U7: QHL | V7: RYW | W7: BIRMINGHAM COMMUNITY HEALTHCARE NHS FOUNDATION TRUST | AA7: R0A | AB7: CALDERDALE AND HUDDERSFIELD NHS FOUNDATION TRUST
K8: Good - Q1 | L8: Very Good - Q1 | M8: Total Eligible | O8: QHM | P8: NORTH EAST AND NORTH CUMBRIA ICB | R8: QHM | S8: NORTH EAST AND NORTH CUMBRIA ICB | U8: QHL | V8: RXK | W8: SANDWELL AND WEST BIRMINGHAM HOSPITALS NHS TRUST | AA8: R0B | AB8: CAMBRIDGESHIRE AND PETERBOROUGH NHS FOUNDATION TRUST
K9: Neither Good nor Poor - Q1 | L9: Good - Q1 | M9: Percentage Positive | O9: QJ2 | P9: DERBY AND DERBYSHIRE ICB | R9: QJ2 | S9: DERBY AND DERBYSHIRE ICB | U9: QHM | V9: RXP | W9: COUNTY DURHAM AND DARLINGTON NHS FOUNDATION TRUST | AA9: R1D | AB9: CHESHIRE AND WIRRAL PARTNERSHIP NHS FOUNDATION TRUST
K10: Poor - Q1 | L10: Neither Good nor Poor - Q1 | M10: Percentage Negative | O10: QJG | P10: SUFFOLK AND NORTH EAST ESSEX ICB | R10: QJG | S10: SUFFOLK AND NORTH EAST ESSEX ICB | U10: QHM | V10: RR7 | W10: GATESHEAD HEALTH NHS FOUNDATION TRUST | AA10: R1K | AB10: COUNTY DURHAM AND DARLINGTON NHS FOUNDATION TRUST
K11: Very Poor - Q1 | L11: Poor - Q1 | M11: Very Good | O11: QJK | P11: DEVON ICB | R11: QJK | S11: DEVON ICB | U11: QHM | V11: RNN | W11: NORTH CUMBRIA INTEGRATED CARE NHS FOUNDATION TRUST | AA11: RAE | AB11: DERBYSHIRE COMMUNITY HEALTH SERVICES NHS FOUNDATION TRUST
K12: Don't Know - Q1 | L12: Very Poor - Q1 | M12: Good | O12: QJM | P12: LINCOLNSHIRE ICB | R12: QJM | S12: LINCOLNSHIRE ICB | U12: QHM | V12: RVW | W12: NORTH TEES AND HARTLEPOOL NHS FOUNDATION TRUST | AA12: RAX | AB12: DORSET HEALTHCARE UNIVERSITY NHS FOUNDATION TRUST
K13: Total Responses - Q2 | L13: Don't Know - Q1 | M13: Neither Good nor Poor | O13: QK1 | P13: LEICESTER, LEICESTERSHIRE AND RUTLAND ICB | R13: QK1 | S13: LEICESTER, LEICESTERSHIRE AND RUTLAND ICB | U13: QHM | V13: RTF | W13: NORTHUMBRIA HEALTHCARE NHS FOUNDATION TRUST | AA13: RBK | AB13: EAST CHESHIRE NHS TRUST
K14: Total Eligible - Q2 | L14: Total Responses - Q2 | M14: Poor | O14: QKK | P14: SOUTH EAST LONDON ICB | R14: QKK | S14: SOUTH EAST LONDON ICB | U14: QHM | V14: RTR | W14: SOUTH TEES HOSPITALS NHS FOUNDATION TRUST | AA14: RBT | AB14: EAST LONDON NHS FOUNDATION TRUST
K15: Percentage Positive - Q2 | L15: Total Eligible - Q2 | M15: Very Poor | O15: QKS | P15: KENT AND MEDWAY ICB | R15: QKS | S15: KENT AND MEDWAY ICB | U15: QHM | V15: R0B | W15: SOUTH TYNESIDE AND SUNDERLAND NHS FOUNDATION TRUST | AA15: RCB | AB15: EAST SUFFOLK AND NORTH ESSEX NHS FOUNDATION TRUST
K16: Percentage Negative - Q2 | L16: Percentage Positive - Q2 | M16: Don't Know | O16: QM7 | P16: HERTFORDSHIRE AND WEST ESSEX ICB | R16: QM7 | S16: HERTFORDSHIRE AND WEST ESSEX ICB | U16: QHM | V16: RTD | W16: THE NEWCASTLE UPON TYNE HOSPITALS NHS FOUNDATION TRUST | AA16: RCF | AB16: EAST SUSSEX HEALTHCARE NHS TRUST
K17: Yes definitely - Q2 | L17: Percentage Negative - Q2 | O17: QMF | P17: NORTH EAST LONDON ICB | R17: QMF | S17: NORTH EAST LONDON ICB | U17: QJ2 | V17: RY8 | W17: DERBYSHIRE COMMUNITY HEALTH SERVICES NHS FOUNDATION TRUST | AA17: RD8 | AB17: GATESHEAD HEALTH NHS FOUNDATION TRUST
K18: Yes to some extent - Q2 | L18: Yes definitely - Q2 | O18: QMJ | P18: NORTH CENTRAL LONDON ICB | R18: QMJ | S18: NORTH CENTRAL LONDON ICB | U18: QJG | V18: RDE | W18: EAST SUFFOLK AND NORTH ESSEX NHS FOUNDATION TRUST | AA18: RDE | AB18: GEORGE ELIOT HOSPITAL NHS TRUST
K19: No - Q2 | L19: Yes to some extent - Q2 | O19: QMM | P19: NORFOLK AND WAVENEY ICB | R19: QMM | S19: NORFOLK AND WAVENEY ICB | U19: QJG | V19: NQA | W19: PROVIDE | AA19: RDR | AB19: GLOUCESTERSHIRE HEALTH AND CARE NHS FOUNDATION TRUST
K20: Total Responses - Q3 | L20: No - Q2 | O20: QNC | P20: STAFFORDSHIRE AND STOKE-ON-TRENT ICB | R20: QNC | S20: STAFFORDSHIRE AND STOKE-ON-TRENT ICB | U20: QJK | V20: NR5 | W20: LIVEWELL SOUTHWEST | AA20: RDY | AB20: GUY'S AND ST THOMAS' NHS FOUNDATION TRUST
K21: Percentage Positive - Q3 | L21: Total Responses - Q3 | O21: QNQ | P21: FRIMLEY ICB | R21: QNQ | S21: FRIMLEY ICB | U21: QJM | V21: RY5 | W21: LINCOLNSHIRE COMMUNITY HEALTH SERVICES NHS TRUST | AA21: REF | AB21: HAMPSHIRE AND ISLE OF WIGHT HEALTHCARE NHS FOUNDATION TRUST
K22: Percentage Negative - Q3 | L22: Percentage Positive - Q3 | O22: QNX | P22: SUSSEX ICB | R22: QNX | S22: SUSSEX ICB | U22: QK1 | V22: RWE | W22: UNIVERSITY HOSPITALS OF LEICESTER NHS TRUST | AA22: RFR | AB22: HOMERTON HEALTHCARE NHS FOUNDATION TRUST
K23: Yes definitely - Q3 | L23: Percentage Negative - Q3 | O23: QOC | P23: SHROPSHIRE, TELFORD AND WREKIN ICB | R23: QOC | S23: SHROPSHIRE, TELFORD AND WREKIN ICB | U23: QKK | V23: RJ1 | W23: GUY'S AND ST THOMAS' NHS FOUNDATION TRUST | AA23: RHQ | AB23: IMPERIAL COLLEGE HEALTHCARE NHS TRUST
K24: Yes to some extent - Q3 | L24: Yes definitely - Q3 | O24: QOP | P24: GREATER MANCHESTER ICB | R24: QOP | S24: GREATER MANCHESTER ICB | U24: QKS | V24: DWN | W24: WEST KENT PRIMARY CARE | AA24: RJ1 | AB24: KINGSTON AND RICHMOND NHS FOUNDATION TRUST
K25: No - Q3 | L25: Yes to some extent - Q3 | O25: QOQ | P25: HUMBER AND NORTH YORKSHIRE ICB | R25: QOQ | S25: HUMBER AND NORTH YORKSHIRE ICB | U25: QMF | V25: RWK | W25: EAST LONDON NHS FOUNDATION TRUST | AA25: RJ7 | AB25: LANCASHIRE & SOUTH CUMBRIA NHS FOUNDATION TRUST
L26: No - Q3 | O26: QOX | P26: BATH AND NORTH EAST SOMERSET, SWINDON AND WILTSHIRE ICB | R26: QOX | S26: BATH AND NORTH EAST SOMERSET, SWINDON AND WILTSHIRE ICB | U26: QMF | V26: RQX | W26: HOMERTON HEALTHCARE NHS FOUNDATION TRUST | AA26: RJC | AB26: LINCOLNSHIRE COMMUNITY HEALTH SERVICES NHS TRUST
L27: SMS - Q1 | O27: QPM | P27: NORTHAMPTONSHIRE ICB | R27: QPM | S27: NORTHAMPTONSHIRE ICB | U27: QMM | V27: RY3 | W27: NORFOLK COMMUNITY HEALTH AND CARE NHS TRUST | AA27: RJL | AB27: LIVEWELL SOUTHWEST
L28: Smartphone - Q1 | O28: QR1 | P28: GLOUCESTERSHIRE ICB | R28: QR1 | S28: GLOUCESTERSHIRE ICB | U28: QNC | V28: RRE | W28: MIDLANDS PARTNERSHIP UNIVERSITY NHS FOUNDATION TRUST | AA28: RJN | AB28: LONDON NORTH WEST UNIVERSITY HEALTHCARE NHS TRUST
L29: Smartphone After - Q1 | O29: QRL | P29: HAMPSHIRE AND ISLE OF WIGHT ICB | R29: QRL | S29: HAMPSHIRE AND ISLE OF WIGHT ICB | U29: QNX | V29: RXC | W29: EAST SUSSEX HEALTHCARE NHS TRUST | AA29: RKB | AB29: MANCHESTER UNIVERSITY NHS FOUNDATION TRUST
L30: Paper - Q1 | O30: QRV | P30: NORTH WEST LONDON ICB | R30: QRV | S30: NORTH WEST LONDON ICB | U30: QNX | V30: RDR | W30: SUSSEX COMMUNITY NHS FOUNDATION TRUST | AA30: RL4 | AB30: MERSEY CARE NHS FOUNDATION TRUST
L31: Paper After - Q1 | O31: QSL | P31: SOMERSET ICB | R31: QSL | S31: SOMERSET ICB | U31: QOC | V31: R1D | W31: SHROPSHIRE COMMUNITY HEALTH NHS TRUST | AA31: RLT | AB31: MID CHESHIRE HOSPITALS NHS FOUNDATION TRUST
L32: Telephone - Q1 | O32: QT1 | P32: NOTTINGHAM AND NOTTINGHAMSHIRE ICB | R32: QT1 | S32: NOTTINGHAM AND NOTTINGHAMSHIRE ICB | U32: QOP | V32: RMC | W32: BOLTON NHS FOUNDATION TRUST | AA32: RM3 | AB32: MID YORKSHIRE TEACHING NHS TRUST
L33: Online - Q1 | O33: QT6 | P33: CORNWALL AND THE ISLES OF SCILLY ICB | R33: QT6 | S33: CORNWALL AND THE ISLES OF SCILLY ICB | U33: QOP | V33: R0A | W33: MANCHESTER UNIVERSITY NHS FOUNDATION TRUST | AA33: RMC | AB33: MIDLANDS PARTNERSHIP UNIVERSITY NHS FOUNDATION TRUST
L34: Other - Q1 | O34: QU9 | P34: BUCKINGHAMSHIRE, OXFORDSHIRE AND BERKSHIRE WEST ICB | R34: QU9 | S34: BUCKINGHAMSHIRE, OXFORDSHIRE AND BERKSHIRE WEST ICB | U34: QOP | V34: RM3 | W34: NORTHERN CARE ALLIANCE NHS FOUNDATION TRUST | AA34: RMP | AB34: MILTON KEYNES UNIVERSITY HOSPITAL NHS FOUNDATION TRUST
L35: SMS - Q2 | O35: QUA | P35: BLACK COUNTRY ICB | R35: QUA | S35: BLACK COUNTRY ICB | U35: QOP | V35: RWJ | W35: STOCKPORT NHS FOUNDATION TRUST | AA35: RNN | AB35: NORFOLK COMMUNITY HEALTH AND CARE NHS TRUST
L36: Smartphone - Q2 | O36: QUE | P36: CAMBRIDGESHIRE AND PETERBOROUGH ICB | R36: QUE | S36: CAMBRIDGESHIRE AND PETERBOROUGH ICB | U36: QOP | V36: RMP | W36: TAMESIDE AND GLOSSOP INTEGRATED CARE NHS FOUNDATION TRUST | AA36: RP1 | AB36: NORTH CUMBRIA INTEGRATED CARE NHS FOUNDATION TRUST
L37: Smartphone After - Q2 | O37: QUY | P37: BRISTOL, NORTH SOMERSET AND SOUTH GLOUCESTERSHIRE ICB | R37: QUY | S37: BRISTOL, NORTH SOMERSET AND SOUTH GLOUCESTERSHIRE ICB | U37: QOP | V37: RRF | W37: WRIGHTINGTON, WIGAN AND LEIGH NHS FOUNDATION TRUST | AA37: RQX | AB37: NORTH TEES AND HARTLEPOOL NHS FOUNDATION TRUST
L38: Paper - Q2 | O38: QVV | P38: DORSET ICB | R38: QVV | S38: DORSET ICB | U38: QOQ | V38: RJL | W38: NORTHERN LINCOLNSHIRE AND GOOLE NHS FOUNDATION TRUST | AA38: RR7 | AB38: NORTHAMPTONSHIRE HEALTHCARE NHS FOUNDATION TRUST
L39: Paper After - Q2 | O39: QWE | P39: SOUTH WEST LONDON ICB | R39: QWE | S39: SOUTH WEST LONDON ICB | U39: QOQ | V39: RCB | W39: YORK AND SCARBOROUGH TEACHING HOSPITALS NHS FOUNDATION TRUST | AA39: RRE | AB39: NORTHERN CARE ALLIANCE NHS FOUNDATION TRUST
L40: Telephone - Q2 | O40: QWO | P40: WEST YORKSHIRE ICB | R40: QWO | S40: WEST YORKSHIRE ICB | U40: QOX | V40: AXG | W40: WILTSHIRE HEALTH & CARE | AA40: RRF | AB40: NORTHERN LINCOLNSHIRE AND GOOLE NHS FOUNDATION TRUST
L41: Online - Q2 | O41: QWU | P41: COVENTRY AND WARWICKSHIRE ICB | R41: QWU | S41: COVENTRY AND WARWICKSHIRE ICB | U41: QPM | V41: RP1 | W41: NORTHAMPTONSHIRE HEALTHCARE NHS FOUNDATION TRUST | AA41: RT1 | AB41: NORTHUMBRIA HEALTHCARE NHS FOUNDATION TRUST
L42: Other - Q2 | O42: QXU | P42: SURREY HEARTLANDS ICB | R42: QXU | S42: SURREY HEARTLANDS ICB | U42: QR1 | V42: RTQ | W42: GLOUCESTERSHIRE HEALTH AND CARE NHS FOUNDATION TRUST | AA42: RTD | AB42: NOTTINGHAM CITYCARE PARTNERSHIP
L43: SMS - Q3 | O43: QYG | P43: CHESHIRE AND MERSEYSIDE ICB | R43: QYG | S43: CHESHIRE AND MERSEYSIDE ICB | U43: QRL | V43: RW1 | W43: HAMPSHIRE AND ISLE OF WIGHT HEALTHCARE NHS FOUNDATION TRUST | AA43: RTF | AB43: OXFORD UNIVERSITY HOSPITALS NHS FOUNDATION TRUST
L44: Smartphone - Q3 | U44: QRV | V44: RYJ | W44: IMPERIAL COLLEGE HEALTHCARE NHS TRUST | AA44: RTH | AB44: PROVIDE
L45: Smartphone After - Q3 | U45: QRV | V45: R1K | W45: LONDON NORTH WEST UNIVERSITY HEALTHCARE NHS TRUST | AA45: RTQ | AB45: ROTHERHAM DONCASTER AND SOUTH HUMBER NHS FOUNDATION TRUST
L46: Paper - Q3 | U46: QT1 | V46: NR3 | W46: NOTTINGHAM CITYCARE PARTNERSHIP | AA46: RTR | AB46: ROYAL CORNWALL HOSPITALS NHS TRUST
L47: Paper After - Q3 | U47: QT6 | V47: REF | W47: ROYAL CORNWALL HOSPITALS NHS TRUST | AA47: RVW | AB47: SANDWELL AND WEST BIRMINGHAM HOSPITALS NHS TRUST
L48: Telephone - Q3 | U48: QU9 | V48: RXQ | W48: BUCKINGHAMSHIRE HEALTHCARE NHS TRUST | AA48: RW1 | AB48: SHEFFIELD TEACHING HOSPITALS NHS FOUNDATION TRUST
L49: Online - Q3 | U49: QU9 | V49: RTH | W49: OXFORD UNIVERSITY HOSPITALS NHS FOUNDATION TRUST | AA49: RW4 | AB49: SHROPSHIRE COMMUNITY HEALTH NHS TRUST
L50: Other - Q3 | U50: QUA | V50: RL4 | W50: THE ROYAL WOLVERHAMPTON NHS TRUST | AA50: RW5 | AB50: SOUTH TEES HOSPITALS NHS FOUNDATION TRUST
U51: QUA | V51: RBK | W51: WALSALL HEALTHCARE NHS TRUST | AA51: RWE | AB51: SOUTH TYNESIDE AND SUNDERLAND NHS FOUNDATION TRUST
U52: QUE | V52: RT1 | W52: CAMBRIDGESHIRE AND PETERBOROUGH NHS FOUNDATION TRUST | AA52: RWJ | AB52: SOUTH WARWICKSHIRE UNIVERSITY NHS FOUNDATION TRUST
U53: QVV | V53: RDY | W53: DORSET HEALTHCARE UNIVERSITY NHS FOUNDATION TRUST | AA53: RWK | AB53: ST GEORGE'S UNIVERSITY HOSPITALS NHS FOUNDATION TRUST
U54: QWE | V54: RAX | W54: KINGSTON AND RICHMOND NHS FOUNDATION TRUST | AA54: RWY | AB54: STOCKPORT NHS FOUNDATION TRUST
U55: QWE | V55: RJ7 | W55: ST GEORGE'S UNIVERSITY HOSPITALS NHS FOUNDATION TRUST | AA55: RXA | AB55: SUSSEX COMMUNITY NHS FOUNDATION TRUST
U56: QWO | V56: RCF | W56: AIREDALE NHS FOUNDATION TRUST | AA56: RXC | AB56: TAMESIDE AND GLOSSOP INTEGRATED CARE NHS FOUNDATION TRUST
U57: QWO | V57: RAE | W57: BRADFORD TEACHING HOSPITALS NHS FOUNDATION TRUST | AA57: RXE | AB57: THE NEWCASTLE UPON TYNE HOSPITALS NHS FOUNDATION TRUST
U58: QWO | V58: RWY | W58: CALDERDALE AND HUDDERSFIELD NHS FOUNDATION TRUST | AA58: RXF | AB58: THE ROTHERHAM NHS FOUNDATION TRUST
U59: QWO | V59: RXF | W59: MID YORKSHIRE TEACHING NHS TRUST | AA59: RXK | AB59: THE ROYAL WOLVERHAMPTON NHS TRUST
U60: QWU | V60: RLT | W60: GEORGE ELIOT HOSPITAL NHS TRUST | AA60: RXP | AB60: UNIVERSITY HOSPITALS COVENTRY AND WARWICKSHIRE NHS TRUST
U61: QWU | V61: RJC | W61: SOUTH WARWICKSHIRE UNIVERSITY NHS FOUNDATION TRUST | AA61: RXQ | AB61: UNIVERSITY HOSPITALS OF LEICESTER NHS TRUST
U62: QWU | V62: RKB | W62: UNIVERSITY HOSPITALS COVENTRY AND WARWICKSHIRE NHS TRUST | AA62: RY3 | AB62: WALSALL HEALTHCARE NHS TRUST
U63: QYG | V63: RXA | W63: CHESHIRE AND WIRRAL PARTNERSHIP NHS FOUNDATION TRUST | AA63: RY5 | AB63: WEST KENT PRIMARY CARE
U64: QYG | V64: RJN | W64: EAST CHESHIRE NHS TRUST | AA64: RY8 | AB64: WILTSHIRE HEALTH & CARE
U65: QYG | V65: RW4 | W65: MERSEY CARE NHS FOUNDATION TRUST | AA65: RYJ | AB65: WRIGHTINGTON, WIGAN AND LEIGH NHS FOUNDATION TRUST
U66: QYG | V66: RBT | W66: MID CHESHIRE HOSPITALS NHS FOUNDATION TRUST | AA66: RYW | AB66: YORK AND SCARBOROUGH TEACHING HOSPITALS NHS FOUNDATION TRUST
